bitfinex/quotes_ETHUSD_20250404
["timestamp","ask_amount","ask_price","bid_price","bid_amount"]
[1743792181661,5.5319,1807.7,1807.2,6.32749]
[1743792182053,5.5319,1807.7,1807.1,5.63371]
[1743792182054,5.53275,1807.5,1807.1,0.1]
[1743792182252,11.0655,1807.5,1807.1,0.1]
[1743792182423,5.53275,1807.5,1807.1,0.742816]
[1743792182620,11.06464,1807.6,1807.1,6.276366]
[1743792183222,5.53222,1807.6,1807.1,6.276366]
[1743792183540,5.532,1807.7,1807.3,5.53289]
[1743792183737,0.8223,1807.9,1807.5,5.5323]
[1743792183942,6.35363,1807.9,1807.6,0.60854628]
[1743792184153,11.88514,1807.9,1807.6,0.55323]
[1743792184330,6.35363,1807.9,1807.4,5.53273]
[1743792184534,11.235,1808.0,1807.6,6.32715]
[1743792184762,5.53126,1808.0,1807.6,0.795]
[1743792184968,0.15393092,1807.9,1807.6,0.795]
[1743792185162,5.68532092,1807.9,1807.6,0.795]
[1743792185369,5.68532092,1807.9,1807.6,1.427737]
[1743792185664,5.68521092,1807.9,1807.6,1.427737]
[1743792186065,5.53173,1807.8,1807.6,1.427737]
[1743792186295,5.53132,1807.9,1807.4,6.35994]
[1743792186445,0.15393092,1807.7,1807.5,5.58780785]
[1743792186645,5.5316,1807.8,1807.4,6.35994]
[1743792186956,0.15393092,1807.7,1807.4,6.35994]
[1743792187335,0.15393092,1807.7,1807.4,0.8273]
[1743792187550,5.53234,1807.6,1807.4,0.636037]
[1743792187755,11.84295,1807.7,1807.3,5.58842279]
[1743792188087,5.5324,1807.6,1807.2,11.06649]
[1743792188285,0.15393092,1807.5,1807.2,11.06649]
[1743792188485,0.15393092,1807.5,1807.2,5.53319]
[1743792188651,0.15393092,1807.5,1807.2,11.06648]
[1743792188983,0.15393092,1807.5,1807.3,1.106648]
[1743792189184,5.53339,1807.3,1807.1,1.553116]
[1743792189386,5.53342,1807.2,1807.1,0.1]
[1743792189801,5.68735092,1807.2,1807.1,0.1]
[1743792193560,6.28353272,1807.2,1807.1,0.1]
[1743792194162,0.8206,1807.0,1806.3,0.7646]
[1743792194383,5.53527,1806.6,1806.3,0.7646]
[1743792194570,11.07133,1806.5,1806.3,0.7646]
[1743792194774,11.07133,1806.5,1806.1,6.3013]
[1743792194997,5.6709494,1806.4,1806.1,0.76461]
[1743792195565,11.2070194,1806.4,1806.1,0.76461]
[1743792195866,5.53633,1806.3,1806.1,0.76461]
[1743792196065,0.1340009,1806.2,1806.1,0.76461]
[1743792196605,0.1340009,1806.2,1806.1,1e-05]
[1743792197012,5.6704809,1806.2,1806.1,1e-05]
[1743792197373,0.1340009,1806.2,1806.1,1e-05]
[1743792198397,5.6704809,1806.2,1806.1,1e-05]
[1743792198721,7.0302627,1806.2,1806.1,1e-05]
[1743792199136,15.7352627,1806.2,1806.1,1e-05]
[1743792201799,16.1452276,1806.2,1806.1,1e-05]
[1743792203205,6.4340809,1806.2,1806.1,1e-05]
[1743792203719,9.4340809,1806.2,1806.1,1e-05]
[1743792205334,0.1340009,1806.2,1806.1,0.75091]
[1743792205539,0.1340009,1806.2,1806.1,6.2877]
[1743792205704,5.53537,1806.6,1806.2,5.53638]
[1743792206225,11.07082,1806.6,1806.2,5.53638]
[1743792206384,5.53537,1806.6,1806.2,12.255118]
[1743792206586,11.07084,1806.6,1806.2,6.718738]
[1743792206804,8.53498,1806.7,1806.2,1.182408]
[1743792207013,5.53498,1806.7,1806.3,5.53601]
[1743792207240,5.53452,1806.9,1806.5,5.53544]
[1743792207725,0.7529,1807.0,1806.4,5.53582]
[1743792207726,5.53466,1806.8,1806.4,5.53582]
[1743792207936,5.53466,1806.8,1806.4,5.53572]
[1743792208623,11.06952,1806.8,1806.4,5.53572]
[1743792208835,11.06952,1806.8,1806.4,6.642905]
[1743792209013,5.53496,1806.7,1806.4,6.642905]
[1743792209216,5.53466,1806.8,1806.4,6.642905]
[1743792209418,5.53498,1806.7,1806.4,5.53572]
[1743792209615,5.53466,1806.8,1806.4,5.53572]
[1743792209789,5.5345,1806.9,1806.5,5.53545]
[1743792209992,0.7529,1807.0,1806.4,5.53585]
[1743792210227,5.53479,1806.8,1806.4,5.53585]
[1743792210416,5.53479,1806.8,1806.4,6.643048]
[1743792210829,5.53505,1806.7,1806.4,1.107198]
[1743792211029,5.53505,1806.7,1806.3,5.53613]
[1743792211338,11.0702,1806.7,1806.3,5.53606]
[1743792212134,5.53538,1806.6,1806.3,5.53606]
[1743792212711,11.07018,1806.7,1806.3,5.53602]
[1743792213049,11.24138,1806.9,1806.3,1.182418]
[1743792213243,5.53538,1806.6,1806.3,6.718588]
[1743792213648,5.53538,1806.6,1806.2,6.28807]
[1743792213649,5.53467,1806.8,1806.2,0.7517]
[1743792213808,14.24138,1806.9,1806.2,0.7517]
[1743792213809,3.0,1806.7,1806.2,0.7517]
[1743792214011,5.53631,1806.3,1806.1,1e-05]
[1743792215649,11.07205,1806.4,1806.1,1e-05]
[1743792215841,5.53628,1806.3,1806.1,1e-05]
[1743792216015,5.53597,1806.4,1806.1,5.53679]
[1743792216358,5.53597,1806.4,1806.1,5.53674]
[1743792216551,16.77736,1806.5,1806.1,5.53674]
[1743792217050,11.24162,1806.5,1806.1,5.53663]
[1743792217415,11.24162,1806.5,1806.1,11.07326]
[1743792217633,11.24162,1806.5,1806.2,0.832]
[1743792217634,16.77737,1806.5,1806.2,0.832]
[1743792217839,11.24162,1806.5,1806.2,0.832]
[1743792218041,5.706,1806.5,1806.2,6.36848]
[1743792218289,5.706,1806.5,1806.3,5.53607]
[1743792218572,5.53528,1806.6,1806.3,5.53607]
[1743792218785,11.07071,1806.6,1806.2,12.541689]
[1743792219091,11.07071,1806.6,1806.2,12.541619]
[1743792219246,5.53559,1806.5,1806.2,6.36835]
[1743792219751,5.53592,1806.4,1806.2,0.832]
[1743792219951,11.07198,1806.4,1806.2,0.832]
[1743792220147,11.07198,1806.4,1806.1,1e-05]
[1743792220479,5.53592,1806.4,1806.1,1e-05]
[1743792220780,5.53592,1806.4,1806.1,5.53679]
[1743792220978,5.53562,1806.5,1806.1,5.53664]
[1743792221351,5.5359,1806.4,1806.1,5.53664]
[1743792222178,5.53527,1806.6,1806.2,5.59176307]
[1743792222384,3.0,1806.7,1806.4,6.3684]
[1743792222856,11.06962,1806.8,1806.4,11.90417]
[1743792223063,5.53477,1806.8,1806.4,11.90413]
[1743792223276,11.0696,1806.8,1806.4,11.90413]
[1743792223972,5.53498,1806.7,1806.4,0.8327]
[1743792224136,5.53529,1806.6,1806.4,0.8327]
[1743792224336,5.53498,1806.7,1806.4,0.8327]
[1743792224546,5.53498,1806.7,1806.4,6.36846]
[1743792225163,11.07019,1806.7,1806.4,0.8327]
[1743792225479,5.53527,1806.6,1806.4,0.8327]
[1743792225877,11.0702,1806.7,1806.4,0.8327]
[1743792226075,5.53556,1806.5,1806.4,0.8327]
[1743792226262,5.53556,1806.5,1806.2,6.34243]
[1743792226471,11.07095,1806.6,1806.2,11.87878]
[1743792226967,5.5354,1806.6,1806.3,5.53613]
[1743792227168,5.53498,1806.7,1806.4,5.53581]
[1743792227342,11.07011,1806.7,1806.4,5.53581]
[1743792227541,5.53498,1806.7,1806.4,5.53581]
[1743792227782,11.07008,1806.7,1806.4,5.53581]
[1743792227953,11.07008,1806.7,1806.3,11.07218]
[1743792228152,11.07008,1806.7,1806.3,5.53605]
[1743792228453,11.07008,1806.7,1806.3,11.07214]
[1743792228654,11.07087,1806.6,1806.2,6.34239]
[1743792228901,5.53531,1806.6,1806.2,6.34241]
[1743792229069,11.07023,1806.7,1806.3,5.53607]
[1743792229273,5.5353,1806.6,1806.3,5.53607]
[1743792229472,11.07024,1806.7,1806.3,11.07213]
[1743792229779,8.53496,1806.7,1806.4,5.53575]
[1743792229963,3.0,1806.7,1806.4,5.53575]
[1743792230177,5.5351,1806.7,1806.4,5.53575]
[1743792230490,3.0,1806.9,1806.6,5.53509]
[1743792230658,3.0,1806.9,1806.6,11.07025]
[1743792230989,3.0,1806.9,1806.7,6.35004]
[1743792231288,3.0,1806.9,1806.7,0.8151]
[1743792231508,8.53444,1806.9,1806.7,0.8151]
[1743792232291,14.06899,1806.9,1806.7,0.8151]
[1743792232589,8.53444,1806.9,1806.7,0.8151]
[1743792232887,14.06896,1806.9,1806.7,0.8151]
[1743792233093,8.53444,1806.9,1806.7,0.8151]
[1743792233284,14.06897,1806.9,1806.7,0.8151]
[1743792233759,8.53444,1806.9,1806.7,0.8151]
[1743792234885,14.06897,1806.9,1806.7,0.8151]
[1743792235045,5.53464,1806.8,1806.7,0.8151]
[1743792235249,5.53464,1806.8,1806.5,0.7958]
[1743792235447,5.53505,1806.7,1806.5,0.7958]
[1743792235871,5.53464,1806.8,1806.5,6.33135]
[1743792236283,11.06953,1806.8,1806.5,0.7958]
[1743792236658,11.06949,1806.8,1806.5,6.33136]
[1743792237187,11.06949,1806.8,1806.5,0.7958]
[1743792237497,11.07017,1806.7,1806.5,0.7958]
[1743792237706,5.53526,1806.6,1806.3,6.31678]
[1743792237901,5.53558,1806.5,1806.3,0.7807]
[1743792238100,11.07081,1806.6,1806.3,0.7807]
[1743792238283,5.53526,1806.6,1806.3,0.7807]
[1743792238460,5.53503,1806.7,1806.3,6.31669]
[1743792238790,5.53503,1806.7,1806.4,5.53572]
[1743792239002,11.07013,1806.7,1806.4,5.53572]
[1743792239207,5.53527,1806.6,1806.3,11.85288]
[1743792239404,11.07017,1806.7,1806.4,5.53583]
[1743792239607,5.53503,1806.7,1806.3,11.85282]
[1743792240315,5.53503,1806.7,1806.3,6.31683]
[1743792240470,11.2377,1806.8,1806.3,0.7807]
[1743792240812,11.2377,1806.8,1806.5,5.53543]
[1743792241016,8.53439,1806.9,1806.6,6.32521]
[1743792241183,14.06888,1806.9,1806.6,6.32521]
[1743792241512,5.53495,1806.7,1806.4,11.86156]
[1743792241711,5.53495,1806.7,1806.4,6.32578]
[1743792242475,5.53526,1806.6,1806.4,0.79]
[1743792242749,11.07014,1806.7,1806.4,0.79]
[1743792243007,5.53495,1806.7,1806.4,6.32583]
[1743792243311,11.07011,1806.7,1806.4,0.79]
[1743792243514,3.0,1806.9,1806.2,5.53642]
[1743792243515,5.53591,1806.4,1806.2,0.7912]
[1743792243817,5.53646,1806.3,1806.1,1e-05]
[1743792244019,5.53648,1806.2,1806.1,1e-05]
[1743792244176,5.53593,1806.4,1806.1,1e-05]
[1743792244381,5.53628,1806.3,1806.1,1e-05]
[1743792244677,12.001763,1806.4,1806.1,1e-05]
[1743792245222,6.465723,1806.4,1806.1,1e-05]
[1743792245417,15.12012133,1806.7,1806.3,5.53594]
[1743792245418,12.00201,1806.7,1806.3,5.53594]
[1743792245622,5.5354,1806.6,1806.3,5.53594]
[1743792245772,5.53541,1806.6,1806.2,5.53644]
[1743792245976,11.07088,1806.6,1806.2,5.53638]
[1743792246385,11.07089,1806.6,1806.2,12.261755]
[1743792246610,5.53541,1806.6,1806.2,6.725415]
[1743792246825,5.53498,1806.7,1806.4,6.33924]
[1743792247094,5.53526,1806.6,1806.4,0.8034]
[1743792247408,5.53573,1806.5,1806.2,0.827]
[1743792247613,5.53573,1806.5,1806.2,6.36346]
[1743792248010,5.53573,1806.5,1806.2,0.827]
[1743792248235,5.53602,1806.4,1806.1,1e-05]
[1743792248736,5.53602,1806.4,1806.1,5.53677]
[1743792248944,11.83357,1806.5,1806.1,11.07341]
[1743792249105,11.83357,1806.5,1806.1,5.53665]
[1743792249436,3.0,1806.6,1806.1,0.05537133]
[1743792249643,8.53538,1806.6,1806.2,5.53648]
[1743792249941,8.53538,1806.6,1806.3,0.8101]
[1743792251004,8.53538,1806.6,1806.3,6.34615]
[1743792251334,3.0,1806.6,1806.3,11.88217]
[1743792251534,5.53501,1806.7,1806.4,5.53584]
[1743792251908,11.07013,1806.7,1806.4,5.53584]
[1743792252212,11.07013,1806.7,1806.3,11.88217]
[1743792252407,5.53535,1806.6,1806.3,0.8101]
[1743792252621,5.53535,1806.6,1806.3,6.34615]
[1743792252822,5.53535,1806.6,1806.3,11.88218]
[1743792253041,11.07076,1806.6,1806.3,0.8101]
[1743792253210,5.53562,1806.5,1806.3,0.8101]
[1743792253533,11.07079,1806.6,1806.3,0.8101]
[1743792254331,5.53561,1806.5,1806.3,0.8101]
[1743792254547,11.07133,1806.5,1806.3,0.8101]
[1743792254753,11.07132,1806.5,1806.2,5.53648]
[1743792254923,5.53561,1806.5,1806.2,5.53648]
[1743792255129,11.0707,1806.6,1806.2,12.258448]
[1743792255943,5.53528,1806.6,1806.3,5.53605]
[1743792256130,11.07072,1806.6,1806.3,5.53605]
[1743792256444,11.07072,1806.6,1806.2,12.258518]
[1743792257338,5.53562,1806.5,1806.2,6.722068]
[1743792257536,5.53562,1806.5,1806.1,11.8564]
[1743792257854,5.53562,1806.5,1806.2,5.53643]
[1743792258347,6.35909,1806.8,1806.2,0.05535808]
[1743792258509,6.35909,1806.8,1806.3,0.7573]
[1743792258712,5.53469,1806.8,1806.4,5.53587]
[1743792258926,5.53435,1806.9,1806.5,5.5355]
[1743792259125,5.53469,1806.8,1806.5,5.5355]
[1743792259332,11.06953,1806.8,1806.5,5.5355]
[1743792259609,5.53469,1806.8,1806.5,5.5355]
[1743792259822,9.505,1807.2,1806.7,5.5348]
[1743792260042,9.505,1807.2,1806.6,6.32485]
[1743792260043,11.06854,1807.0,1806.6,6.32485]
[1743792260200,5.53437,1806.9,1806.6,6.32485]
[1743792261406,11.06886,1806.9,1806.6,6.32485]
[1743792261640,15.03843,1807.2,1806.6,6.32485]
[1743792261843,5.53451,1806.9,1806.6,6.32485]
[1743792262030,5.53451,1806.9,1806.6,7.510891]
[1743792262231,5.53451,1806.9,1806.6,13.046051]
[1743792262429,5.53451,1806.9,1806.6,7.510801]
[1743792262818,5.53451,1806.9,1806.6,7.510791]
[1743792263446,5.53451,1806.9,1806.6,7.510761]
[1743792263610,5.53451,1806.9,1806.6,6.32472]
[1743792263810,11.06901,1806.9,1806.6,0.7896]
[1743792264025,5.53464,1806.8,1806.5,5.53553]
[1743792264219,5.53464,1806.8,1806.4,6.981357]
[1743792264220,5.53496,1806.7,1806.4,11.88778]
[1743792264427,5.53464,1806.8,1806.4,13.076558]
[1743792264912,5.53464,1806.8,1806.5,5.53547]
[1743792265272,5.5344,1806.9,1806.6,5.53524]
[1743792265615,5.53465,1806.8,1806.5,5.53541]
[1743792266250,5.5344,1806.9,1806.5,11.07084]
[1743792266419,11.06893,1806.9,1806.5,5.53541]
[1743792266747,5.53467,1806.8,1806.5,5.53541]
[1743792266951,5.53499,1806.7,1806.4,6.352]
[1743792267153,5.53467,1806.8,1806.5,5.53544]
[1743792267316,5.53556,1806.5,1806.2,0.8117]
[1743792267648,6.089426,1806.4,1806.1,1e-05]
[1743792267820,1.18020638,1806.6,1806.1,1e-05]
[1743792268153,5.53594,1806.4,1806.1,5.5367]
[1743792268749,5.53577,1806.5,1806.1,5.5367]
[1743792268750,5.53577,1806.5,1806.1,11.07332]
[1743792268956,5.5359,1806.4,1806.1,5.53663]
[1743792269167,11.07157,1806.5,1806.1,5.53663]
[1743792269566,5.53576,1806.5,1806.2,5.53648]
[1743792271039,5.53497,1806.7,1806.3,6.33286]
[1743792271238,6.32363,1807.0,1806.3,6.33286]
[1743792271239,5.53464,1806.8,1806.4,11.07154]
[1743792271461,5.53464,1806.8,1806.5,5.53549]
[1743792272047,5.53507,1806.7,1806.4,5.53576]
[1743792272870,5.53464,1806.8,1806.3,0.7968]
[1743792273176,5.53464,1806.8,1806.4,11.07148]
[1743792273334,5.53436,1806.9,1806.6,0.8245]
[1743792273531,5.5348,1806.8,1806.5,5.53545]
[1743792273781,5.53496,1806.7,1806.4,11.89609]
[1743792273930,5.5348,1806.8,1806.5,5.53555]
[1743792274427,11.06963,1806.8,1806.5,5.53555]
[1743792274633,5.5348,1806.8,1806.5,5.53555]
[1743792275385,5.5348,1806.8,1806.5,6.725129]
[1743792276668,11.06963,1806.8,1806.5,1.189579]
[1743792276857,5.535,1806.7,1806.4,6.36024]
[1743792277058,5.535,1806.7,1806.4,11.89598]
[1743792277258,11.06975,1806.8,1806.4,11.89598]
[1743792277478,5.53495,1806.7,1806.4,6.36024]
[1743792277800,15.02166,1807.0,1806.4,6.36024]
[1743792277801,5.53434,1806.9,1806.4,0.8245]
[1743792277970,5.53546,1806.6,1806.3,5.53615]
[1743792278179,5.53546,1806.6,1806.3,11.07223]
[1743792278336,5.53546,1806.6,1806.3,5.53608]
[1743792278530,5.53546,1806.6,1806.3,11.07213]
[1743792278737,5.53502,1806.7,1806.4,5.53583]
[1743792278932,5.53502,1806.7,1806.3,5.53605]
[1743792279140,11.07025,1806.7,1806.3,11.0721]
[1743792279365,5.53502,1806.7,1806.4,5.53571]
[1743792280547,11.06942,1806.8,1806.4,11.07143]
[1743792280765,5.53466,1806.8,1806.5,5.53552]
[1743792280941,5.53466,1806.8,1806.5,6.31122]
[1743792281279,5.53496,1806.7,1806.5,0.7757]
[1743792281865,5.53466,1806.8,1806.5,6.31125]
[1743792282271,5.53466,1806.8,1806.5,6.31111]
[1743792282747,5.53436,1806.9,1806.6,5.53525]
[1743792283079,5.53477,1806.8,1806.5,6.31111]
[1743792283251,11.06957,1806.8,1806.5,6.31111]
[1743792283454,11.06957,1806.8,1806.5,0.7757]
[1743792283680,5.535,1806.7,1806.3,6.31302]
[1743792283881,5.53538,1806.6,1806.3,6.31302]
[1743792284100,5.53538,1806.6,1806.3,5.53612]
[1743792284260,5.53585,1806.5,1806.1,6.31357]
[1743792284602,11.07215,1806.4,1806.1,1e-05]
[1743792284807,5.53637,1806.3,1806.1,1e-05]
[1743792285094,6.34188,1806.2,1806.1,1e-05]
[1743792287601,9.34188,1806.2,1806.1,1e-05]
[1743792287772,10.2544738,1806.2,1806.1,1e-05]
[1743792292506,5.53648,1806.2,1806.1,1e-05]
[1743792292829,5.5363,1806.3,1806.1,1e-05]
[1743792293244,11.07213,1806.4,1806.1,1e-05]
[1743792293445,5.53618,1806.3,1806.1,1e-05]
[1743792294058,5.53648,1806.2,1806.1,1e-05]
[1743792295120,6.30678,1806.2,1806.1,1e-05]
[1743792295663,9.30678,1806.2,1806.1,1e-05]
[1743792297553,8.53648,1806.2,1806.1,1e-05]
[1743792297857,5.53648,1806.2,1806.1,1e-05]
[1743792298468,6.31516,1806.6,1806.1,1e-05]
[1743792298633,5.53505,1806.7,1806.4,5.53575]
[1743792299660,11.07017,1806.7,1806.4,5.53575]
[1743792299859,5.53528,1806.6,1806.3,6.28792]
[1743792300363,5.53528,1806.6,1806.3,6.28785]
[1743792300563,5.53501,1806.7,1806.3,6.28785]
[1743792300564,5.53501,1806.7,1806.3,13.006314]
[1743792300727,11.07015,1806.7,1806.3,7.470264]
[1743792300927,0.8072,1806.7,1806.3,0.7518]
[1743792301129,5.53525,1806.6,1806.3,0.7518]
[1743792301457,5.53525,1806.6,1806.3,6.28788]
[1743792301658,5.53474,1806.8,1806.3,0.80715673]
[1743792301867,0.7977,1807.3,1806.5,0.8031]
[1743792302038,5.53351,1807.2,1806.8,5.53446]
[1743792302362,5.53345,1807.2,1806.8,6.721756]
[1743792302660,5.53387,1807.1,1806.8,1.187236]
[1743792303076,3.0,1807.2,1806.7,0.8031]
[1743792303276,5.53445,1806.9,1806.7,0.8031]
[1743792303984,5.53413,1807.0,1806.7,0.8031]
[1743792304181,5.53372,1807.1,1806.7,0.8031]
[1743792304481,8.53342,1807.2,1806.7,0.8031]
[1743792304482,5.53444,1806.9,1806.7,0.8031]
[1743792304646,5.53444,1806.9,1806.5,6.34769]
[1743792304647,5.53465,1806.8,1806.5,6.34769]
[1743792304845,5.53513,1806.7,1806.5,0.8123]
[1743792305050,5.53587,1806.4,1806.1,0.79491]
[1743792305244,0.815,1806.6,1806.1,0.79491]
[1743792305245,11.07265,1806.3,1806.1,0.79491]
[1743792305451,5.53648,1806.2,1806.1,1e-05]
[1743792306270,5.53627,1806.3,1806.1,1e-05]
[1743792306488,8.53584,1806.5,1806.2,0.8296]
[1743792306710,5.53532,1806.6,1806.2,6.36607]
[1743792306995,5.53528,1806.6,1806.3,5.53616]
[1743792307188,5.53509,1806.7,1806.4,5.53584]
[1743792307394,5.53468,1806.8,1806.4,5.5357]
[1743792307592,5.53468,1806.8,1806.2,1.466226]
[1743792307593,12.05553,1807.0,1806.6,5.53524]
[1743792307769,30.43744,1807.6,1806.8,5.53436]
[1743792307770,5.53352,1807.2,1806.8,5.53436]
[1743792307980,5.53352,1807.2,1806.7,1.43176916]
[1743792307981,5.53353,1807.2,1806.9,0.05534082]
[1743792308187,5.53396,1807.1,1806.7,12.446154]
[1743792308699,5.53396,1807.1,1806.7,6.911224]
[1743792308899,5.53423,1807.0,1806.7,1.376424]
[1743792309108,5.53376,1807.1,1806.8,5.53463]
[1743792309408,5.53345,1807.2,1806.8,6.23126976]
[1743792309611,5.53375,1807.1,1806.8,0.69663976]
[1743792309907,13.20691404,1807.5,1806.7,0.8229]
[1743792309908,5.53403,1807.0,1806.7,0.8229]
[1743792310069,5.53452,1806.9,1806.7,0.8229]
[1743792310273,11.06951,1806.8,1806.5,0.7688]
[1743792310582,5.53464,1806.8,1806.5,0.7688]
[1743792310785,5.53521,1806.7,1806.3,11.22916]
[1743792311001,5.5353,1806.6,1806.3,8.0451836]
[1743792311203,0.8196,1806.7,1806.1,0.76881]
[1743792311405,5.53648,1806.2,1806.1,1e-05]
[1743792311601,5.5359,1806.4,1806.1,1e-05]
[1743792312111,5.53591,1806.4,1806.1,1e-05]
[1743792312608,5.53528,1806.6,1806.3,0.759]
[1743792312813,5.53562,1806.5,1806.3,0.759]
[1743792313111,5.53528,1806.6,1806.3,0.759]
[1743792313299,11.07074,1806.6,1806.3,0.759]
[1743792313497,5.53528,1806.6,1806.3,0.759]
[1743792313675,5.53587,1806.4,1806.3,0.759]
[1743792313872,5.53645,1806.3,1806.1,0.82151]
[1743792314813,13.24552404,1806.8,1806.1,0.82151]
[1743792315010,5.53538,1806.6,1806.2,5.59167503]
[1743792315215,5.53538,1806.6,1806.2,5.53631]
[1743792315414,5.53569,1806.5,1806.2,1.189458]
[1743792315709,11.07144,1806.5,1806.2,1.189458]
[1743792315890,5.53594,1806.4,1806.1,6.35827]
[1743792316087,5.53569,1806.5,1806.1,6.4134699]
[1743792316293,5.53499,1806.7,1806.3,5.53599]
[1743792316491,5.53499,1806.7,1806.2,11.0728]
[1743792316702,11.07013,1806.7,1806.3,5.536]
[1743792316903,5.53537,1806.6,1806.3,1.11277081]
[1743792317105,5.53537,1806.6,1806.2,11.07265]
[1743792317322,5.53537,1806.6,1806.2,5.53632]
[1743792317484,5.53569,1806.5,1806.1,6.35829]
[1743792317904,5.53569,1806.5,1806.1,11.89494]
[1743792318124,5.53526,1806.6,1806.2,5.53646]
[1743792318326,11.07014,1806.7,1806.3,6.089676]
[1743792318597,5.53435,1806.9,1806.5,6.32432]
[1743792318932,5.53373,1807.1,1806.7,5.5348]
[1743792319133,5.53373,1807.1,1806.9,0.7889]
[1743792319334,5.53343,1807.2,1806.9,1.421252]
[1743792319535,5.53282,1807.4,1807.0,5.58911939]
[1743792319721,11.06582,1807.4,1807.0,5.58911939]
[1743792320034,11.06582,1807.4,1806.9,6.955552]
[1743792320035,5.53314,1807.3,1806.9,6.955552]
[1743792320236,5.53314,1807.3,1806.9,1.421252]
[1743792320237,5.53356,1807.2,1806.9,1.421252]
[1743792320439,5.53313,1807.3,1807.0,5.53389]
[1743792320596,5.53344,1807.2,1806.9,1.421252]
[1743792321138,5.53387,1807.1,1806.9,0.7889]
[1743792321507,5.53455,1806.9,1806.5,17.5229]
[1743792321740,5.53455,1806.9,1806.5,11.98738]
[1743792321927,5.53403,1807.0,1806.5,0.76]
[1743792322127,3.0,1806.7,1806.2,0.76]
[1743792322334,5.53599,1806.4,1806.2,0.76]
[1743792322710,5.53617,1806.3,1806.2,0.76]
[1743792322919,5.53617,1806.3,1806.1,1e-05]
[1743792323119,5.53648,1806.2,1806.1,1e-05]
[1743792325347,8.53648,1806.2,1806.1,1e-05]
[1743792329539,9.29258,1806.2,1806.1,1e-05]
[1743792331972,9.70219413,1806.2,1806.1,1e-05]
[1743792332772,10.25219413,1806.2,1806.1,1e-05]
[1743792333787,6.70219413,1806.2,1806.1,1e-05]
[1743792333991,7.25219413,1806.2,1806.1,1e-05]
[1743792334153,10.25219413,1806.2,1806.1,1e-05]
[1743792334869,10.25219413,1806.2,1805.1,0.8076]
[1743792334870,5.53955,1805.2,1805.1,0.8076]
[1743792335281,5.53955,1805.2,1805.1,0.05]
[1743792335866,8.53955,1805.2,1805.1,0.05]
[1743792337198,3.0,1805.2,1805.1,0.8581]
[1743792337498,8.53955,1805.2,1805.1,0.8581]
[1743792337994,5.53955,1805.2,1805.1,0.8581]
[1743792338214,5.53944,1805.3,1805.1,0.8581]
[1743792338771,5.53955,1805.2,1805.1,0.05]
[1743792340106,5.53944,1805.3,1805.1,0.05]
[1743792340820,0.8001,1805.7,1805.3,6.33588]
[1743792340982,5.53824,1805.7,1805.3,6.33588]
[1743792341182,5.53806,1805.7,1805.3,0.7968]
[1743792341384,5.53806,1805.7,1805.3,6.33589]
[1743792341697,5.53716,1806.0,1805.4,0.05538901]
[1743792341901,5.53755,1805.9,1805.5,6.31166]
[1743792342200,5.53805,1805.7,1805.5,0.7732]
[1743792342705,5.53799,1805.8,1805.5,6.31181]
[1743792342907,5.53789,1805.8,1805.5,0.7732]
[1743792343212,11.07581,1805.8,1805.5,0.7732]
[1743792343379,8.53744,1805.9,1805.5,6.31165]
[1743792343575,3.0,1805.9,1805.6,5.53822]
[1743792343773,3.88641728,1806.3,1805.5,6.72918938]
[1743792344104,8.53658,1806.2,1805.8,11.07526]
[1743792344324,5.53623,1806.3,1806.0,5.53709]
[1743792344609,5.53631,1806.3,1805.9,6.33995]
[1743792344805,9.3311,1806.4,1806.0,5.53693]
[1743792345010,8.536,1806.4,1806.0,5.53693]
[1743792345213,5.53651,1806.2,1805.9,6.33999]
[1743792345371,5.53622,1806.3,1805.9,11.8771]
[1743792345577,5.53622,1806.3,1805.9,6.33984]
[1743792345784,5.53663,1806.2,1805.9,6.33984]
[1743792346216,5.53622,1806.3,1805.9,11.87713]
[1743792346384,5.53622,1806.3,1806.0,5.53706]
[1743792346782,5.53622,1806.3,1805.9,11.87709]
[1743792347021,5.53622,1806.3,1805.9,12.74110484]
[1743792347192,8.53589,1806.4,1806.0,11.07393]
[1743792347397,3.0,1806.5,1806.3,5.53606]
[1743792347732,0.8015,1807.1,1806.3,0.7873]
[1743792347913,11.22504,1807.0,1806.4,0.05535312]
[1743792348151,5.53434,1806.9,1806.5,6.35153]
[1743792348328,5.53434,1806.9,1806.5,0.8162]
[1743792348329,5.53476,1806.8,1806.5,0.8162]
[1743792348506,5.53434,1806.9,1806.5,6.35157]
[1743792348706,5.53434,1806.9,1806.5,0.8162]
[1743792349043,11.06888,1806.9,1806.5,6.35152]
[1743792349544,5.53434,1806.9,1806.5,6.35152]
[1743792350158,5.53515,1806.7,1806.5,0.8162]
[1743792350319,5.53515,1806.7,1806.3,6.35504]
[1743792350649,5.53467,1806.8,1806.3,6.35504]
[1743792350650,5.53467,1806.8,1806.4,5.53583]
[1743792351003,3.0,1806.8,1806.5,5.53551]
[1743792351208,11.06882,1806.9,1806.5,5.53546]
[1743792351403,5.53477,1806.8,1806.4,5.53583]
[1743792351605,0.8152,1806.8,1806.3,0.8189]
[1743792351912,5.53658,1806.2,1805.8,5.53768]
[1743792352114,5.53679,1806.1,1805.7,6.30092]
[1743792352534,5.53782,1805.8,1805.4,6.36061]
[1743792352855,5.53782,1805.8,1805.5,5.53857]
[1743792353022,5.53741,1805.9,1805.5,5.53857]
[1743792353238,5.53741,1805.9,1805.5,11.07701]